[Event "Titled Tuesday Blitz December 13 Early 2022"]
[White "Odegov, Artem"]
[Black "Manukian, Artak"]
[WhiteFideId "34183644"]
[BlackFideId "13301373"]
[WhiteElo "2300"]
[BlackElo "2130"]
[Result "1/2-1/2"]
[Round "09"]
[TimeControl "180+1"]
[Date "2022.12.14"]
[WhiteClock "0:00:07"]
[BlackClock "0:00:09"]

1. d4 {[%clk 0:03:00]}  d5 {[%clk 0:02:48]} 2. c4 {[%clk 0:02:59]}  dxc4 {[%clk 0:02:48]} 3. Nf3 {[%clk 0:02:58]}  Nf6 {[%clk 0:02:47]} 4. e3 {[%clk 0:02:58]}  e6 {[%clk 0:02:47]} 5. Bxc4 {[%clk 0:02:58]}  c5 {[%clk 0:02:47]} 6. O-O {[%clk 0:02:58]}  a6 {[%clk 0:02:47]} 7. Qe2 {[%clk 0:02:58]}  b5 {[%clk 0:02:47]} 8. Bd3 {[%clk 0:02:58]}  Bb7 {[%clk 0:02:47]} 9. dxc5 {[%clk 0:02:54]}  Bxc5 {[%clk 0:02:46]} 10. Bxb5+ {[%clk 0:02:52]}  axb5 {[%clk 0:02:42]} 11. Qxb5+ {[%clk 0:02:51]}  Nbd7 {[%clk 0:02:41]} 12. Qxb7 {[%clk 0:02:51]}  O-O {[%clk 0:02:40]} 13. Nc3 {[%clk 0:02:50]}  Nb6 {[%clk 0:02:29]} 14. Rd1 {[%clk 0:02:47]}  Qe8 {[%clk 0:02:28]} 15. b3 {[%clk 0:02:41]}  Nfd5 {[%clk 0:02:08]} 16. Ne4 {[%clk 0:02:33]}  Qb5 {[%clk 0:01:50]} 17. Rxd5 {[%clk 0:01:36]}  exd5 {[%clk 0:01:43]} 18. Nc3 {[%clk 0:01:35]}  Qd3 {[%clk 0:01:34]} 19. Bb2 {[%clk 0:01:31]}  Rab8 {[%clk 0:01:16]} 20. Qc7 {[%clk 0:01:26]}  Rfc8 {[%clk 0:01:15]} 21. Qe5 {[%clk 0:01:22]}  Nc4 {[%clk 0:00:59]} 22. bxc4 {[%clk 0:00:40]}  Rxb2 {[%clk 0:00:58]} 23. Nxd5 {[%clk 0:00:12]}  Rb1+ {[%clk 0:00:57]} 24. Ne1 {[%clk 0:00:11]}  Rxa1 {[%clk 0:00:49]} 25. Qxa1 {[%clk 0:00:12]}  Qxc4 {[%clk 0:00:49]} 26. Nf4 {[%clk 0:00:10]}  Bb4 {[%clk 0:00:35]} 27. Nfd3 {[%clk 0:00:09]}  Bxe1 {[%clk 0:00:31]} 28. Nxe1 {[%clk 0:00:10]}  Qc1 {[%clk 0:00:31]} 29. Qxc1 {[%clk 0:00:10]}  Rxc1 {[%clk 0:00:32]} 30. Kf1 {[%clk 0:00:11]}  Ra1 {[%clk 0:00:32]} 31. Ke2 {[%clk 0:00:10]}  Rxa2+ {[%clk 0:00:32]} 32. Kf3 {[%clk 0:00:11]}  f5 {[%clk 0:00:31]} 33. Nd3 {[%clk 0:00:12]}  g6 {[%clk 0:00:31]} 34. h3 {[%clk 0:00:12]}  Kg7 {[%clk 0:00:32]} 35. Nf4 {[%clk 0:00:12]}  Ra5 {[%clk 0:00:29]} 36. Ne6+ {[%clk 0:00:11]}  Kf6 {[%clk 0:00:29]} 37. Nd4 {[%clk 0:00:12]}  g5 {[%clk 0:00:25]} 38. g3 {[%clk 0:00:13]}  h5 {[%clk 0:00:25]} 39. Ne2 {[%clk 0:00:07]}  Ra2 {[%clk 0:00:22]} 40. Nd4 {[%clk 0:00:07]}  Rb2 {[%clk 0:00:21]} 41. Nc6 {[%clk 0:00:07]}  g4+ {[%clk 0:00:19]} 42. hxg4 {[%clk 0:00:08]}  fxg4+ {[%clk 0:00:18]} 43. Kg2 {[%clk 0:00:09]}  Kg5 {[%clk 0:00:17]} 44. Ne5 {[%clk 0:00:09]}  Rd2 {[%clk 0:00:16]} 45. Nc4 {[%clk 0:00:07]}  Ra2 {[%clk 0:00:16]} 46. Ne5 {[%clk 0:00:07]}  Ra8 {[%clk 0:00:15]} 47. Nd3 {[%clk 0:00:08]}  Kf5 {[%clk 0:00:14]} 48. Nf4 {[%clk 0:00:08]}  Rh8 {[%clk 0:00:14]} 49. Kf1 {[%clk 0:00:06]}  Ke4 {[%clk 0:00:14]} 50. Ke2 {[%clk 0:00:07]}  h4 {[%clk 0:00:14]} 51. gxh4 {[%clk 0:00:07]}  Rxh4 {[%clk 0:00:15]} 52. Kf1 {[%clk 0:00:07]}  Kf3 {[%clk 0:00:14]} 53. Kg1 {[%clk 0:00:07]}  g3 {[%clk 0:00:12]} 54. fxg3 {[%clk 0:00:06]}  Kxg3 {[%clk 0:00:13]} 55. Ne2+ {[%clk 0:00:04]}  Kf3 {[%clk 0:00:13]} 56. Kf1 {[%clk 0:00:05]}  Kxe3 {[%clk 0:00:09]} 57. Ng1 {[%clk 0:00:04]}  Rh2 {[%clk 0:00:08]} 58. Ke1 {[%clk 0:00:03]}  Rf2 {[%clk 0:00:06]} 59. Nh3 {[%clk 0:00:02]}  Rg2 {[%clk 0:00:04]} 60. Kf1 {[%clk 0:00:02]}  Rh2 {[%clk 0:00:04]} 61. Ng1 {[%clk 0:00:02]}  Ra2 {[%clk 0:00:03]} 62. Nh3 {[%clk 0:00:02]}  Kf3 {[%clk 0:00:03]} 63. Ng1+ {[%clk 0:00:02]}  Kg3 {[%clk 0:00:03]} 64. Ne2+ {[%clk 0:00:03]}  Kf3 {[%clk 0:00:03]} 65. Ng1+ {[%clk 0:00:03]}  Ke3 {[%clk 0:00:04]} 66. Nh3 {[%clk 0:00:04]}  Rh2 {[%clk 0:00:03]} 67. Ng1 {[%clk 0:00:04]}  Rf2+ {[%clk 0:00:03]} 68. Ke1 {[%clk 0:00:04]}  Rb2 {[%clk 0:00:04]} 69. Kf1 {[%clk 0:00:04]}  Rb1+ {[%clk 0:00:03]} 70. Kg2 {[%clk 0:00:05]}  Kf4 {[%clk 0:00:04]} 71. Kf2 {[%clk 0:00:05]}  Kg4 {[%clk 0:00:05]} 72. Ne2 {[%clk 0:00:05]}  Rb2 {[%clk 0:00:05]} 73. Ke3 {[%clk 0:00:06]}  Kf5 {[%clk 0:00:05]} 74. Kd3 {[%clk 0:00:06]}  Ke6 {[%clk 0:00:06]} 75. Nf4+ {[%clk 0:00:05]}  Ke5 {[%clk 0:00:06]} 76. Ne2 {[%clk 0:00:06]}  Kd5 {[%clk 0:00:07]} 77. Nc3+ {[%clk 0:00:07]}  Kc5 {[%clk 0:00:06]} 78. Ne4+ {[%clk 0:00:07]}  Kb4 {[%clk 0:00:06]} 79. Kd4 {[%clk 0:00:07]}  Rb3 {[%clk 0:00:07]} 80. Nc5 {[%clk 0:00:07]}  Rh3 {[%clk 0:00:07]} 81. Nd3+ {[%clk 0:00:07]}  Kb5 {[%clk 0:00:08]} 82. Nf4 {[%clk 0:00:07]}  Rh5 {[%clk 0:00:09]} 83. Nxh5 {[%clk 0:00:07]} 1/2-1/2


[Site "https://www.chess.com"]

[Event "Titled Tuesday Blitz December 13 Early 2022"]
[White "Orlov, Georgi"]
[Black "Szyszylo, Rafal"]
[WhiteFideId "2011271"]
[BlackFideId "1109626"]
[WhiteElo "2512"]
[BlackElo "1981"]
[Result "1/2-1/2"]
[Round "09"]
[TimeControl "180+1"]
[Date "2022.12.14"]
[WhiteClock "0:00:11"]
[BlackClock "0:00:08"]

1. d4 {[%clk 0:03:00]}  d6 {[%clk 0:02:59]} 2. e4 {[%clk 0:02:58]}  g6 {[%clk 0:03:00]} 3. Nf3 {[%clk 0:02:57]}  Nf6 {[%clk 0:02:59]} 4. Nc3 {[%clk 0:02:57]}  Bg7 {[%clk 0:02:58]} 5. Be2 {[%clk 0:02:56]}  O-O {[%clk 0:02:58]} 6. O-O {[%clk 0:02:55]}  Nc6 {[%clk 0:02:54]} 7. Bf4 {[%clk 0:02:39]}  Bg4 {[%clk 0:02:24]} 8. d5 {[%clk 0:02:37]}  Nb8 {[%clk 0:02:18]} 9. Qd2 {[%clk 0:02:28]}  c6 {[%clk 0:02:15]} 10. a4 {[%clk 0:02:23]}  cxd5 {[%clk 0:02:06]} 11. exd5 {[%clk 0:02:22]}  Bxf3 {[%clk 0:01:58]} 12. Bxf3 {[%clk 0:02:21]}  Nbd7 {[%clk 0:01:52]} 13. Rfe1 {[%clk 0:02:19]}  Re8 {[%clk 0:01:51]} 14. a5 {[%clk 0:02:17]}  a6 {[%clk 0:01:47]} 15. Na4 {[%clk 0:02:05]}  Rc8 {[%clk 0:01:46]} 16. Rab1 {[%clk 0:01:53]}  Qc7 {[%clk 0:01:35]} 17. Re2 {[%clk 0:01:37]}  Ne5 {[%clk 0:01:04]} 18. Bxe5 {[%clk 0:01:31]}  dxe5 {[%clk 0:01:05]} 19. Nb6 {[%clk 0:01:31]}  Rcd8 {[%clk 0:01:04]} 20. c4 {[%clk 0:01:28]}  Nd7 {[%clk 0:00:53]} 21. Nxd7 {[%clk 0:01:18]}  Rxd7 {[%clk 0:00:54]} 22. b4 {[%clk 0:01:16]}  e6 {[%clk 0:00:54]} 23. Qa2 {[%clk 0:01:11]}  exd5 {[%clk 0:00:44]} 24. Bxd5 {[%clk 0:01:09]}  Kh8 {[%clk 0:00:43]} 25. Rbe1 {[%clk 0:01:03]}  f5 {[%clk 0:00:42]} 26. f3 {[%clk 0:01:00]}  Red8 {[%clk 0:00:41]} 27. Qb3 {[%clk 0:00:59]}  b6 {[%clk 0:00:40]} 28. axb6 {[%clk 0:00:54]}  Qxb6+ {[%clk 0:00:40]} 29. c5 {[%clk 0:00:52]}  Qc7 {[%clk 0:00:35]} 30. Rd1 {[%clk 0:00:42]}  a5 {[%clk 0:00:34]} 31. Red2 {[%clk 0:00:40]}  axb4 {[%clk 0:00:33]} 32. Qxb4 {[%clk 0:00:38]}  Rb8 {[%clk 0:00:32]} 33. Qc4 {[%clk 0:00:35]}  Rbd8 {[%clk 0:00:25]} 34. Rd3 {[%clk 0:00:32]}  Bf8 {[%clk 0:00:16]} 35. c6 {[%clk 0:00:31]}  Rd6 {[%clk 0:00:16]} 36. Kh1 {[%clk 0:00:28]}  Bg7 {[%clk 0:00:17]} 37. g3 {[%clk 0:00:27]}  Rb8 {[%clk 0:00:16]} 38. Be4 {[%clk 0:00:22]}  Rbd8 {[%clk 0:00:14]} 39. Rxd6 {[%clk 0:00:20]}  Rxd6 {[%clk 0:00:14]} 40. Rxd6 {[%clk 0:00:19]}  Qxd6 {[%clk 0:00:14]} 41. c7 {[%clk 0:00:19]}  Qd1+ {[%clk 0:00:08]} 42. Kg2 {[%clk 0:00:18]}  Qd2+ {[%clk 0:00:08]} 43. Kf1 {[%clk 0:00:15]}  Qd1+ {[%clk 0:00:07]} 44. Kf2 {[%clk 0:00:14]}  Qd2+ {[%clk 0:00:06]} 45. Kf1 {[%clk 0:00:11]}  Qd1+ {[%clk 0:00:06]} 46. Kg2 {[%clk 0:00:11]}  Qd2+ {[%clk 0:00:07]} 47. Kh3 {[%clk 0:00:11]}  Qh6+ {[%clk 0:00:07]} 48. Kg2 {[%clk 0:00:11]}  Qd2+ {[%clk 0:00:08]} 1/2-1/2


[Site "https://www.chess.com"]

[Event "Titled Tuesday Blitz December 13 Early 2022"]
[White "Osmak, Yuliia"]
[Black "Ohanyan, Emin"]
[WhiteFideId "14101602"]
[BlackFideId "13312022"]
[WhiteElo "2328"]
[BlackElo "2352"]
[Result "1-0"]
[Round "09"]
[TimeControl "180+1"]
[Date "2022.12.13"]
[WhiteClock "0:00:07"]
[BlackClock "0:00:03"]

1. e4 {[%clk 0:03:00]}  e5 {[%clk 0:03:00]} 2. Nf3 {[%clk 0:03:00]}  Nc6 {[%clk 0:03:00]} 3. Bb5 {[%clk 0:02:59]}  f5 {[%clk 0:03:01]} 4. d3 {[%clk 0:02:58]}  fxe4 {[%clk 0:03:01]} 5. dxe4 {[%clk 0:02:58]}  Nf6 {[%clk 0:03:02]} 6. O-O {[%clk 0:02:57]}  Bc5 {[%clk 0:03:02]} 7. Bxc6 {[%clk 0:02:53]}  bxc6 {[%clk 0:03:02]} 8. Nxe5 {[%clk 0:02:54]}  O-O {[%clk 0:03:02]} 9. Nd3 {[%clk 0:02:53]}  Nxe4 {[%clk 0:03:00]} 10. Nxc5 {[%clk 0:02:50]}  Nxc5 {[%clk 0:03:01]} 11. Be3 {[%clk 0:02:47]}  Ne6 {[%clk 0:02:59]} 12. Nd2 {[%clk 0:02:40]}  d5 {[%clk 0:02:59]} 13. Nb3 {[%clk 0:02:38]}  Qf6 {[%clk 0:02:53]} 14. c3 {[%clk 0:02:36]}  Qg6 {[%clk 0:02:51]} 15. Kh1 {[%clk 0:02:20]}  Ba6 {[%clk 0:02:31]} 16. Re1 {[%clk 0:02:15]}  Bd3 {[%clk 0:02:03]} 17. Qd2 {[%clk 0:02:11]}  Be4 {[%clk 0:01:57]} 18. Rg1 {[%clk 0:02:08]}  Rf3 {[%clk 0:01:43]} 19. Qe2 {[%clk 0:01:53]}  Rf7 {[%clk 0:00:18]} 20. f3 {[%clk 0:01:46]}  Bd3 {[%clk 0:00:16]} 21. Qd2 {[%clk 0:01:44]}  h5 {[%clk 0:00:11]} 22. Nc5 {[%clk 0:01:35]}  Nxc5 {[%clk 0:00:10]} 23. Bxc5 {[%clk 0:01:36]}  h4 {[%clk 0:00:09]} 24. Rad1 {[%clk 0:01:32]}  Bf5 {[%clk 0:00:04]} 25. h3 {[%clk 0:01:28]}  Qh5 {[%clk 0:00:04]} 26. Qf2 {[%clk 0:01:23]}  a5 {[%clk 0:00:03]} 27. Rd4 {[%clk 0:01:23]}  g5 {[%clk 0:00:02]} 28. Re1 {[%clk 0:01:20]}  Kh7 {[%clk 0:00:03]} 29. Rd2 {[%clk 0:01:17]}  Rg8 {[%clk 0:00:01]} 30. Rde2 {[%clk 0:01:15]}  Qg6 {[%clk 0:00:02]} 31. Re7 {[%clk 0:01:14]}  Rgg7 {[%clk 0:00:02]} 32. Re8 {[%clk 0:01:05]}  Rg8 {[%clk 0:00:01]} 33. Bd4 {[%clk 0:01:02]}  Bd7 {[%clk 0:00:01]} 34. R8e7 {[%clk 0:00:59]}  Bf5 {[%clk 0:00:01]} 35. R1e3 {[%clk 0:00:54]}  Rf8 {[%clk 0:00:01]} 36. Qe1 {[%clk 0:00:53]}  a4 {[%clk 0:00:02]} 37. Rxf7+ {[%clk 0:00:49]}  Rxf7 {[%clk 0:00:03]} 38. Re8 {[%clk 0:00:49]}  Qd6 {[%clk 0:00:03]} 39. Rh8+ {[%clk 0:00:48]}  Kg6 {[%clk 0:00:03]} 40. Qe8 {[%clk 0:00:46]}  Be6 {[%clk 0:00:01]} 41. Qg8+ {[%clk 0:00:16]}  Kf5 {[%clk 0:00:02]} 42. Rh5 {[%clk 0:00:14]}  Qf4 {[%clk 0:00:01]} 43. Rh7 {[%clk 0:00:13]}  Qc1+ {[%clk 0:00:01]} 44. Kh2 {[%clk 0:00:12]}  Qf4+ {[%clk 0:00:01]} 45. Kh1 {[%clk 0:00:13]}  Qc1+ {[%clk 0:00:02]} 46. Bg1 {[%clk 0:00:11]}  Rxh7 {[%clk 0:00:01]} 47. Qxh7+ {[%clk 0:00:11]}  Kf6 {[%clk 0:00:02]} 48. Qxc7 {[%clk 0:00:10]}  Qd1 {[%clk 0:00:01]} 49. Qxc6 {[%clk 0:00:09]}  Kf7 {[%clk 0:00:02]} 50. Qc7+ {[%clk 0:00:09]}  Kg6 {[%clk 0:00:02]} 51. Qd6 {[%clk 0:00:09]}  Kf7 {[%clk 0:00:03]} 52. Qc7+ {[%clk 0:00:09]}  Kg6 {[%clk 0:00:03]} 53. Qe5 {[%clk 0:00:09]}  Kf7 {[%clk 0:00:02]} 54. Qxg5 {[%clk 0:00:09]}  Qc2 {[%clk 0:00:02]} 55. Qxh4 {[%clk 0:00:08]}  Qxb2 {[%clk 0:00:03]} 56. Qf4+ {[%clk 0:00:08]}  Kg6 {[%clk 0:00:03]} 57. Qxa4 {[%clk 0:00:08]}  Qxc3 {[%clk 0:00:03]} 58. Qf4 {[%clk 0:00:08]}  Qc2 {[%clk 0:00:02]} 59. a4 {[%clk 0:00:07]}  Bf5 {[%clk 0:00:02]} 60. a5 {[%clk 0:00:07]}  Bd3 {[%clk 0:00:02]} 61. Qd6+ {[%clk 0:00:07]}  Kh7 {[%clk 0:00:02]} 62. Qxd5 {[%clk 0:00:07]}  Bf1 {[%clk 0:00:03]} 63. Qh5+ {[%clk 0:00:07]}  Kg7 {[%clk 0:00:03]} 64. Qg4+ {[%clk 0:00:07]}  Kh7 {[%clk 0:00:03]} 65. a6 {[%clk 0:00:07]}  Bxa6 {[%clk 0:00:03]} 66. Qd7+ {[%clk 0:00:07]}  Kg8 {[%clk 0:00:03]} 67. Qd8+ {[%clk 0:00:07]}  Kf7 {[%clk 0:00:02]} 68. Qd7+ {[%clk 0:00:07]}  Kg8 {[%clk 0:00:03]} 69. Qe6+ {[%clk 0:00:07]}  Kh7 {[%clk 0:00:02]} 70. Qxa6 {[%clk 0:00:08]}  Qd1 {[%clk 0:00:02]} 71. Qa7+ {[%clk 0:00:08]}  Kg6 {[%clk 0:00:02]} 72. Qb6+ {[%clk 0:00:08]}  Kf5 {[%clk 0:00:03]} 73. Qd4 {[%clk 0:00:08]}  Qf1 {[%clk 0:00:03]} 74. Qe4+ {[%clk 0:00:08]}  Kg5 {[%clk 0:00:03]} 75. Qg4+ {[%clk 0:00:08]}  Kf6 {[%clk 0:00:03]} 76. h4 {[%clk 0:00:08]}  Qa1 {[%clk 0:00:03]} 77. Kh2 {[%clk 0:00:08]}  Qe5+ {[%clk 0:00:03]} 78. Qg3 {[%clk 0:00:08]}  Qa1 {[%clk 0:00:04]} 79. h5 {[%clk 0:00:08]}  Kf7 {[%clk 0:00:04]} 80. Qg4 {[%clk 0:00:08]}  Qd1 {[%clk 0:00:03]} 81. Bf2 {[%clk 0:00:07]}  Qxf3 {[%clk 0:00:03]} 82. Qxf3+ {[%clk 0:00:07]} 1-0


[Site "https://www.chess.com"]

[Event "Titled Tuesday Blitz December 13 Early 2022"]
[White "Ovchinnikov, Vsevolod"]
[Black "Berezin, Viktor"]
[WhiteFideId "24176842"]
[BlackFideId "14107872"]
[WhiteElo "2376"]
[BlackElo "2310"]
[Result "1/2-1/2"]
[Round "09"]
[TimeControl "180+1"]
[Date "2022.12.14"]
[WhiteClock "0:00:07"]
[BlackClock "0:00:05"]

1. d4 {[%clk 0:03:00]}  Nf6 {[%clk 0:02:57]} 2. c4 {[%clk 0:03:01]}  g6 {[%clk 0:02:54]} 3. Nc3 {[%clk 0:03:00]}  Bg7 {[%clk 0:02:55]} 4. e4 {[%clk 0:03:01]}  O-O {[%clk 0:02:55]} 5. Nf3 {[%clk 0:03:01]}  d6 {[%clk 0:02:56]} 6. h3 {[%clk 0:03:01]}  Na6 {[%clk 0:02:54]} 7. Be3 {[%clk 0:03:01]}  e5 {[%clk 0:02:54]} 8. d5 {[%clk 0:03:01]}  Nc5 {[%clk 0:02:54]} 9. Nd2 {[%clk 0:03:01]}  a5 {[%clk 0:02:54]} 10. g4 {[%clk 0:03:02]}  c6 {[%clk 0:02:52]} 11. a3 {[%clk 0:02:59]}  a4 {[%clk 0:02:49]} 12. Be2 {[%clk 0:02:55]}  Nfd7 {[%clk 0:02:46]} 13. h4 {[%clk 0:02:50]}  f5 {[%clk 0:02:32]} 14. gxf5 {[%clk 0:02:49]}  gxf5 {[%clk 0:02:33]} 15. exf5 {[%clk 0:02:47]}  Nb6 {[%clk 0:02:19]} 16. Bxc5 {[%clk 0:01:35]}  dxc5 {[%clk 0:02:17]} 17. Nde4 {[%clk 0:01:36]}  Bxf5 {[%clk 0:02:00]} 18. Nxc5 {[%clk 0:01:27]}  cxd5 {[%clk 0:01:41]} 19. cxd5 {[%clk 0:01:10]}  Rc8 {[%clk 0:01:18]} 20. Ne6 {[%clk 0:00:54]}  Bxe6 {[%clk 0:01:14]} 21. dxe6 {[%clk 0:00:54]}  Qf6 {[%clk 0:01:14]} 22. Ne4 {[%clk 0:00:49]}  Qf4 {[%clk 0:00:57]} 23. e7 {[%clk 0:00:30]}  Qxe4 {[%clk 0:00:57]} 24. exf8=Q+ {[%clk 0:00:30]}  Rxf8 {[%clk 0:00:57]} 25. Rf1 {[%clk 0:00:27]}  Qxh4 {[%clk 0:00:53]} 26. Qd6 {[%clk 0:00:19]}  Nc8 {[%clk 0:00:30]} 27. Qe6+ {[%clk 0:00:16]}  Kh8 {[%clk 0:00:31]} 28. Rc1 {[%clk 0:00:15]}  Ne7 {[%clk 0:00:27]} 29. Qg4 {[%clk 0:00:13]}  Qh6 {[%clk 0:00:26]} 30. Rc7 {[%clk 0:00:13]}  Nd5 {[%clk 0:00:24]} 31. Qxg7+ {[%clk 0:00:05]}  Qxg7 {[%clk 0:00:24]} 32. Rxg7 {[%clk 0:00:06]}  Kxg7 {[%clk 0:00:25]} 33. Rg1+ {[%clk 0:00:07]}  Kf6 {[%clk 0:00:23]} 34. Rh1 {[%clk 0:00:06]}  Kg6 {[%clk 0:00:20]} 35. Bd3+ {[%clk 0:00:06]}  Kg5 {[%clk 0:00:18]} 36. Rxh7 {[%clk 0:00:05]}  Nf4 {[%clk 0:00:16]} 37. Bc2 {[%clk 0:00:06]}  Rc8 {[%clk 0:00:15]} 38. Bd1 {[%clk 0:00:05]}  b5 {[%clk 0:00:11]} 39. Rd7 {[%clk 0:00:05]}  Rc5 {[%clk 0:00:11]} 40. Rd2 {[%clk 0:00:05]}  Kf5 {[%clk 0:00:10]} 41. f3 {[%clk 0:00:05]}  Nd5 {[%clk 0:00:06]} 42. Bc2+ {[%clk 0:00:05]}  Kf4 {[%clk 0:00:07]} 43. Be4 {[%clk 0:00:05]}  Ne3 {[%clk 0:00:07]} 44. Ke2 {[%clk 0:00:04]}  Rc1 {[%clk 0:00:06]} 45. Rd8 {[%clk 0:00:03]}  Nc4 {[%clk 0:00:05]} 46. Rf8+ {[%clk 0:00:04]}  Kg3 {[%clk 0:00:05]} 47. Rb8 {[%clk 0:00:03]}  Nxb2 {[%clk 0:00:03]} 48. Rxb5 {[%clk 0:00:04]}  Nc4 {[%clk 0:00:04]} 49. Rb4 {[%clk 0:00:03]}  Kf4 {[%clk 0:00:03]} 50. Rxa4 {[%clk 0:00:03]}  Nb2 {[%clk 0:00:03]} 51. Rb4 {[%clk 0:00:04]}  Nc4 {[%clk 0:00:02]} 52. a4 {[%clk 0:00:04]}  Nd6 {[%clk 0:00:02]} 53. Bd3+ {[%clk 0:00:03]}  Kg5 {[%clk 0:00:02]} 54. a5 {[%clk 0:00:04]}  Ra1 {[%clk 0:00:03]} 55. a6 {[%clk 0:00:04]}  e4 {[%clk 0:00:03]} 56. fxe4 {[%clk 0:00:04]}  Kf6 {[%clk 0:00:03]} 57. Rb6 {[%clk 0:00:05]}  Ke5 {[%clk 0:00:03]} 58. Rc6 {[%clk 0:00:04]}  Nxe4 {[%clk 0:00:03]} 59. Bxe4 {[%clk 0:00:05]}  Kxe4 {[%clk 0:00:04]} 60. Kd2 {[%clk 0:00:05]}  Kd5 {[%clk 0:00:05]} 61. Rh6 {[%clk 0:00:06]}  Kc5 {[%clk 0:00:05]} 62. Kc3 {[%clk 0:00:06]}  Kb5 {[%clk 0:00:04]} 63. Kb2 {[%clk 0:00:07]}  Ra4 {[%clk 0:00:04]} 64. Kb3 {[%clk 0:00:07]}  Rxa6 {[%clk 0:00:04]} 65. Rxa6 {[%clk 0:00:07]}  Kxa6 {[%clk 0:00:05]} 1/2-1/2


[Site "https://www.chess.com"]

[Event "Titled Tuesday Blitz December 13 Early 2022"]
[White "Papasimakopoulos, Alexandros"]
[Black "Bethke, Richard"]
[WhiteFideId "4244125"]
[BlackFideId "12959243"]
[WhiteElo "2384"]
[BlackElo "2369"]
[Result "1-0"]
[Round "09"]
[TimeControl "180+1"]
[Date "2022.12.14"]
[WhiteClock "0:00:53"]
[BlackClock "0:00:48"]

1. d4 {[%clk 0:02:56]}  f5 {[%clk 0:02:57]} 2. e4 {[%clk 0:02:56]}  fxe4 {[%clk 0:02:56]} 3. Nc3 {[%clk 0:02:55]}  Nf6 {[%clk 0:02:56]} 4. Bg5 {[%clk 0:02:54]}  Nc6 {[%clk 0:02:41]} 5. d5 {[%clk 0:02:54]}  Ne5 {[%clk 0:02:41]} 6. Qd4 {[%clk 0:02:54]}  Nf7 {[%clk 0:02:41]} 7. h4 {[%clk 0:02:55]}  e5 {[%clk 0:02:37]} 8. dxe6 {[%clk 0:02:52]}  dxe6 {[%clk 0:02:37]} 9. Qxd8+ {[%clk 0:02:52]}  Nxd8 {[%clk 0:02:33]} 10. O-O-O {[%clk 0:02:51]}  Nc6 {[%clk 0:02:28]} 11. Nb5 {[%clk 0:02:46]}  Nd5 {[%clk 0:02:25]} 12. c4 {[%clk 0:02:38]}  a6 {[%clk 0:02:25]} 13. cxd5 {[%clk 0:02:38]}  axb5 {[%clk 0:02:26]} 14. dxc6 {[%clk 0:02:38]}  bxc6 {[%clk 0:02:27]} 15. Kb1 {[%clk 0:02:32]}  e5 {[%clk 0:02:22]} 16. Rd8+ {[%clk 0:02:21]}  Kf7 {[%clk 0:02:20]} 17. Be3 {[%clk 0:02:06]}  Ke7 {[%clk 0:02:18]} 18. Rd2 {[%clk 0:02:04]}  Be6 {[%clk 0:02:15]} 19. b3 {[%clk 0:01:57]}  Kf7 {[%clk 0:02:07]} 20. Ne2 {[%clk 0:01:56]}  Ba3 {[%clk 0:01:57]} 21. Ng3 {[%clk 0:01:54]}  Rhd8 {[%clk 0:01:48]} 22. Rxd8 {[%clk 0:01:49]}  Rxd8 {[%clk 0:01:49]} 23. Be2 {[%clk 0:01:49]}  Bd5 {[%clk 0:01:45]} 24. Bd1 {[%clk 0:01:46]}  c5 {[%clk 0:01:43]} 25. Bc2 {[%clk 0:01:45]}  c4 {[%clk 0:01:42]} 26. Rd1 {[%clk 0:01:42]}  cxb3 {[%clk 0:01:39]} 27. Bxb3 {[%clk 0:01:39]}  c6 {[%clk 0:01:35]} 28. Nxe4 {[%clk 0:01:37]}  Ke8 {[%clk 0:01:27]} 29. Nc3 {[%clk 0:01:30]}  Bxg2 {[%clk 0:01:20]} 30. Rxd8+ {[%clk 0:01:31]}  Kxd8 {[%clk 0:01:20]} 31. Bc2 {[%clk 0:01:24]}  Bb4 {[%clk 0:01:17]} 32. Be4 {[%clk 0:01:18]}  Bf1 {[%clk 0:01:11]} 33. Kc2 {[%clk 0:01:18]}  c5 {[%clk 0:01:10]} 34. Bxh7 {[%clk 0:01:12]}  Bc4 {[%clk 0:01:07]} 35. Bd3 {[%clk 0:01:08]}  Be6 {[%clk 0:00:54]} 36. Bxb5 {[%clk 0:01:06]}  Bxc3 {[%clk 0:00:55]} 37. Kxc3 {[%clk 0:01:06]}  Bxa2 {[%clk 0:00:56]} 38. Bxc5 {[%clk 0:01:06]}  Bb1 {[%clk 0:00:51]} 39. Kd2 {[%clk 0:00:56]}  Bf5 {[%clk 0:00:49]} 40. Bd6 {[%clk 0:00:53]}  e4 {[%clk 0:00:48]} 41. Ke3 {[%clk 0:00:53]} 1-0


[Site "https://www.chess.com"]

[Event "Titled Tuesday Blitz December 13 Early 2022"]
[White "Qashashvili, Alexandre"]
[Black "Fernandez Garcia, Gumersindo"]
[WhiteFideId "13600842"]
[BlackFideId "24516740"]
[WhiteElo "2405"]
[BlackElo "2140"]
[Result "1-0"]
[Round "09"]
[TimeControl "180+1"]
[Date "2022.12.14"]
[WhiteClock "0:00:14"]
[BlackClock "0:00:15"]

1. e4 {[%clk 0:03:00]}  c5 {[%clk 0:02:55]} 2. Nc3 {[%clk 0:02:59]}  g6 {[%clk 0:02:53]} 3. g3 {[%clk 0:03:00]}  Bg7 {[%clk 0:02:54]} 4. Bg2 {[%clk 0:03:00]}  d6 {[%clk 0:02:54]} 5. d3 {[%clk 0:03:01]}  Nc6 {[%clk 0:02:55]} 6. Be3 {[%clk 0:03:01]}  Nf6 {[%clk 0:02:51]} 7. Nf3 {[%clk 0:03:01]}  O-O {[%clk 0:02:50]} 8. h3 {[%clk 0:03:02]}  b6 {[%clk 0:02:46]} 9. Qd2 {[%clk 0:03:01]}  d5 {[%clk 0:02:39]} 10. exd5 {[%clk 0:02:57]}  Nxd5 {[%clk 0:02:39]} 11. Bh6 {[%clk 0:02:54]}  Nxc3 {[%clk 0:02:30]} 12. bxc3 {[%clk 0:02:55]}  Bb7 {[%clk 0:02:28]} 13. h4 {[%clk 0:02:54]}  Qc7 {[%clk 0:02:25]} 14. h5 {[%clk 0:02:53]}  Ne5 {[%clk 0:02:00]} 15. hxg6 {[%clk 0:02:25]}  Nxf3+ {[%clk 0:01:47]} 16. Bxf3 {[%clk 0:02:23]}  Qe5+ {[%clk 0:01:45]} 17. Kf1 {[%clk 0:02:10]}  Bxf3 {[%clk 0:01:44]} 18. Bxg7 {[%clk 0:02:07]}  Qxg7 {[%clk 0:01:43]} 19. gxh7+ {[%clk 0:02:06]}  Kh8 {[%clk 0:01:41]} 20. Rh4 {[%clk 0:02:06]}  f5 {[%clk 0:01:31]} 21. Re1 {[%clk 0:02:01]}  Bd5 {[%clk 0:01:28]} 22. c4 {[%clk 0:00:59]}  Bc6 {[%clk 0:01:25]} 23. Qe3 {[%clk 0:00:52]}  Rae8 {[%clk 0:01:18]} 24. Qe6 {[%clk 0:00:43]}  Rf6 {[%clk 0:01:16]} 25. Qe5 {[%clk 0:00:37]}  Ba8 {[%clk 0:00:48]} 26. Re3 {[%clk 0:00:31]}  f4 {[%clk 0:00:43]} 27. gxf4 {[%clk 0:00:27]}  Ref8 {[%clk 0:00:31]} 28. Rg3 {[%clk 0:00:22]}  Qf7 {[%clk 0:00:31]} 29. Qg5 {[%clk 0:00:16]}  Rf5 {[%clk 0:00:19]} 30. Qg8+ {[%clk 0:00:13]}  Rxg8 {[%clk 0:00:15]} 31. hxg8=Q# {[%clk 0:00:14]} 1-0


[Site "https://www.chess.com"]